bitfinex/quotes_SOLUSD_20230113
["timestamp","ask_amount","ask_price","bid_price","bid_amount"]
[1673620464771,65.16,16.611,16.6,16.55]
[1673620464982,45.15,16.615,16.601,20.0]
[1673620465164,45.14,16.616,16.601,20.0]
[1673620465906,46.47590269,16.619,16.603,20.0]
[1673620466128,65.14,16.618,16.603,20.0]
[1673620466344,17.0,16.617,16.603,20.0]
[1673620466560,65.14,16.616,16.603,20.0]
[1673620466747,17.0,16.615,16.603,20.0]
[1673620466958,45.15,16.614,16.602,111.8913]
[1673620467188,45.15,16.615,16.602,111.8913]
[1673620467700,45.15,16.615,16.603,20.0]
[1673620468754,17.0,16.614,16.603,20.0]
[1673620468953,17.0,16.615,16.603,20.0]
[1673620469166,20.0,16.616,16.603,20.0]
[1673620469491,20.0,16.621,16.603,20.0]
[1673620469707,45.13,16.62,16.603,20.0]
[1673620469897,20.0,16.619,16.603,20.0]
[1673620470106,45.14,16.618,16.603,20.0]
[1673620470316,20.0,16.617,16.603,20.0]
[1673620470547,62.14,16.616,16.603,20.0]
[1673620470751,45.14,16.616,16.603,20.0]
[1673620470962,20.0,16.617,16.603,20.0]
[1673620471171,45.14,16.616,16.603,20.0]
[1673620471372,20.0,16.621,16.603,20.0]
[1673620471584,45.13,16.62,16.603,20.0]
[1673620471788,20.0,16.619,16.603,20.0]
[1673620472023,45.14,16.618,16.603,20.0]
[1673620472222,37.0,16.617,16.603,20.0]
[1673620472426,45.14,16.616,16.603,20.0]
[1673620472635,17.0,16.615,16.603,20.0]
[1673620474123,45.14,16.616,16.603,20.0]
[1673620474323,20.0,16.617,16.603,20.0]
[1673620474531,20.0,16.621,16.603,20.0]
[1673620474855,45.13,16.62,16.603,20.0]
[1673620475081,20.0,16.619,16.603,20.0]
[1673620475385,62.14,16.618,16.603,20.0]
[1673620475571,20.0,16.617,16.603,20.0]
[1673620475790,17.0,16.616,16.603,20.0]
[1673620476323,17.0,16.616,16.603,65.18]
[1673620476520,62.14,16.616,16.603,20.0]
[1673620476731,17.0,16.616,16.603,20.0]
[1673620477382,17.0,16.616,16.61,16.39]
[1673620478328,62.14,16.616,16.61,16.39]
[1673620478518,17.0,16.616,16.61,16.39]
[1673620479885,62.14,16.616,16.61,16.39]
[1673620480098,17.0,16.616,16.61,16.39]
[1673620481471,91.59590269,16.623,16.61,16.39]
[1673620481689,45.12,16.623,16.611,20.0]
[1673620481897,45.11,16.628,16.611,20.0]
[1673620482224,20.0,16.627,16.611,20.0]
[1673620482413,45.12,16.626,16.611,20.0]
[1673620483373,17.0,16.625,16.611,20.0]
[1673620483798,45.12,16.624,16.611,20.0]
[1673620483990,17.0,16.623,16.611,20.0]
[1673620484203,45.12,16.624,16.611,20.0]
[1673620484414,45.12,16.626,16.611,20.0]
[1673620484956,45.12,16.626,16.612,45.15]
[1673620485145,45.12,16.626,16.611,65.16]
[1673620485773,45.12,16.626,16.611,20.0]
[1673620486193,17.0,16.625,16.611,20.0]
[1673620486416,45.12,16.624,16.611,20.0]
[1673620486637,17.0,16.625,16.611,20.0]
[1673620486824,17.0,16.625,16.612,45.15]
[1673620487039,20.0,16.627,16.612,45.15]
[1673620487251,20.0,16.628,16.62,16.39]
[1673620487666,20.0,16.631,16.62,16.39]
[1673620487877,65.09,16.634,16.62,16.39]
[1673620488526,80.45761259,16.633,16.62,16.39]
[1673620488736,65.1,16.632,16.62,16.39]
[1673620489370,111.4944433,16.632,16.62,16.39]
[1673620489793,17.0,16.631,16.62,16.39]
[1673620489981,65.1,16.63,16.611,20.0]
[1673620490196,17.54554849,16.618,16.61,82.75]
[1673620490511,17.54554849,16.618,16.61,16.67]
[1673620490725,17.0,16.617,16.61,36.67]
[1673620491352,17.54554849,16.618,16.611,20.0]
[1673620491882,17.54554849,16.618,16.61,36.67]
[1673620492207,17.54554849,16.618,16.611,20.0]
[1673620492398,17.54554849,16.618,16.61,16.67]
[1673620492824,17.0,16.617,16.61,16.67]
[1673620493262,17.54554849,16.618,16.61,16.67]
[1673620493665,17.0,16.617,16.61,16.67]
[1673620494416,20.0,16.616,16.61,16.67]
[1673620494612,17.0,16.615,16.61,16.67]
[1673620494824,17.0,16.615,16.605,115.1269]
[1673620495244,45.15,16.614,16.605,115.1269]
[1673620495456,17.0,16.613,16.605,115.1269]
[1673620495874,17.0,16.614,16.6,82.57]
[1673620496086,45.15,16.613,16.6,82.57]
[1673620496293,17.0,16.612,16.6,82.57]
[1673620496512,45.16,16.611,16.6,82.57]
[1673620496837,17.0,16.61,16.6,82.57]
[1673620497153,45.15,16.614,16.6,82.57]
[1673620497353,20.0,16.616,16.6,82.57]
[1673620497354,17.0,16.613,16.6,82.57]
[1673620497570,45.15,16.612,16.6,82.57]
[1673620497779,45.14,16.615,16.6,82.57]
[1673620497985,45.14,16.615,16.601,20.0]
[1673620498929,17.0,16.614,16.601,20.0]
[1673620499144,45.15,16.613,16.601,20.0]
[1673620499461,17.0,16.612,16.6,82.57]
[1673620500507,17.0,16.612,16.601,20.0]
[1673620501124,17.0,16.612,16.6,82.57]
[1673620501365,45.16,16.611,16.6,82.57]
[1673620501561,17.0,16.61,16.6,82.57]
[1673620501982,45.15,16.613,16.6,82.57]
[1673620502174,17.0,16.612,16.6,82.57]
[1673620502381,45.16,16.611,16.6,82.57]
[1673620502587,17.0,16.61,16.6,82.57]
[1673620504713,45.15,16.614,16.6,82.57]
[1673620504928,45.15,16.615,16.6,82.57]
[1673620505881,17.0,16.614,16.6,82.57]
[1673620506403,45.15,16.615,16.6,82.57]
[1673620508172,20.0,16.616,16.601,62.18]
[1673620508382,20.0,16.617,16.61,16.4]
[1673620509862,17.54554849,16.618,16.61,82.6]
[1673620510381,17.54554849,16.618,16.611,20.0]
[1673620510798,10.83284849,16.618,16.611,20.0]
[1673620511023,45.11,16.627,16.611,20.0]
[1673620511239,20.0,16.626,16.611,20.0]
[1673620511439,45.12,16.625,16.611,20.0]
[1673620512377,45.11,16.629,16.611,20.0]
[1673620512621,45.11,16.629,16.612,110.2675]
[1673620513033,20.0,16.628,16.612,110.2675]
[1673620513217,45.11,16.627,16.612,110.2675]
[1673620513426,17.0,16.626,16.612,110.2675]
[1673620513637,45.12,16.625,16.612,110.2675]
[1673620513870,17.0,16.624,16.612,110.2675]
[1673620514290,45.11,16.627,16.612,110.2675]
[1673620514481,20.0,16.626,16.613,37.0]
[1673620514691,20.0,16.626,16.612,110.2675]
[1673620514920,45.12,16.625,16.612,110.2675]
[1673620515328,20.0,16.624,16.612,110.2675]
[1673620515547,45.12,16.623,16.612,110.2675]
[1673620515860,17.0,16.622,16.61,82.6]
[1673620516178,65.13,16.621,16.603,119.7059]
[1673620516419,20.0,16.619,16.603,119.7059]
[1673620516585,82.14,16.618,16.603,119.7059]
[1673620517327,37.0,16.618,16.61,16.52]
[1673620517848,45.13,16.622,16.61,82.6]
[1673620518051,45.11,16.628,16.61,82.54]
[1673620518262,45.11,16.628,16.611,111.5377]
[1673620518263,20.0,16.627,16.611,111.5377]
[1673620518473,45.12,16.626,16.611,111.5377]
[1673620519640,97.74146027,16.626,16.611,111.5377]
[1673620521854,17.0,16.625,16.611,111.5377]
[1673620522050,45.12,16.624,16.611,111.5377]
[1673620522265,17.0,16.623,16.611,111.5377]
[1673620523308,45.12,16.625,16.612,20.0]
[1673620523519,20.0,16.635,16.612,20.0]
[1673620523520,45.11,16.629,16.612,20.0]
[1673620523855,20.0,16.628,16.614,20.0]
[1673620524068,45.11,16.627,16.614,20.0]
[1673620524255,20.0,16.626,16.615,17.0]
[1673620524464,20.0,16.626,16.614,180.3973]
[1673620524797,20.0,16.629,16.614,135.2473]
[1673620524989,45.11,16.628,16.614,135.2473]
[1673620525198,20.0,16.627,16.614,135.2473]
[1673620525852,20.0,16.629,16.614,135.2473]
[1673620526048,45.11,16.628,16.614,135.2473]
[1673620526258,20.0,16.627,16.614,135.2473]
[1673620526674,20.0,16.629,16.614,135.2473]
[1673620526895,17.0,16.628,16.614,135.2473]
[1673620527108,20.0,16.627,16.614,135.2473]
[1673620527317,17.0,16.626,16.614,135.2473]
[1673620527525,20.0,16.627,16.614,135.2473]
[1673620527735,20.0,16.629,16.62,16.52]
[1673620528158,20.0,16.629,16.614,115.2473]
[1673620528369,45.11,16.628,16.614,115.2473]
[1673620528791,20.0,16.627,16.614,115.2473]
[1673620529110,20.0,16.627,16.611,111.5377]
[1673620529111,45.12,16.626,16.611,111.5377]
[1673620529296,17.0,16.625,16.611,111.5377]
[1673620529513,45.12,16.624,16.611,111.5377]
[1673620529722,17.0,16.623,16.612,20.0]
[1673620529934,45.13,16.622,16.611,111.5377]
[1673620530137,17.0,16.621,16.611,111.5377]
[1673620530358,45.12,16.626,16.611,111.5377]
[1673620530788,17.0,16.625,16.611,111.5377]
[1673620530994,45.12,16.624,16.611,111.5377]
[1673620531212,17.0,16.623,16.611,111.5377]
[1673620532155,17.0,16.623,16.612,20.0]
[1673620532684,45.12,16.626,16.612,20.0]
[1673620532998,72.62146027,16.627,16.612,45.15]
[1673620533209,72.62146027,16.627,16.611,156.6977]
[1673620533522,45.12,16.626,16.611,156.6977]
[1673620533918,17.0,16.625,16.611,156.6977]
[1673620534139,17.0,16.625,16.612,20.0]
[1673620534359,17.0,16.626,16.612,20.0]
[1673620534772,17.0,16.626,16.611,156.6977]
[1673620535004,62.12,16.626,16.611,156.6977]
[1673620535524,62.12,16.626,16.611,111.5377]
[1673620535732,45.12,16.626,16.611,111.5377]
[1673620536048,115.5128,16.637,16.62,82.36]
[1673620536453,45.09,16.636,16.62,16.55]
[1673620536661,20.0,16.635,16.62,16.55]
[1673620536867,225.79,16.634,16.615,396.6]
[1673620537093,20.0,16.632,16.615,396.6]
[1673620537302,65.1,16.631,16.615,396.6]
[1673620537617,20.0,16.63,16.615,396.6]
[1673620537827,65.11,16.629,16.615,396.6]
[1673620538149,20.0,16.628,16.615,396.6]
[1673620538360,82.11,16.627,16.615,396.6]
[1673620538671,82.11,16.627,16.611,111.5377]
[1673620539737,82.11,16.627,16.61,16.68]
[1673620540139,20.0,16.626,16.61,16.68]
[1673620540359,62.12,16.625,16.61,16.68]
[1673620542139,20.0,16.624,16.61,16.68]
[1673620542350,45.12,16.623,16.61,16.68]
[1673620542895,19.5,16.621,16.606,108.0662]
[1673620543100,65.13,16.62,16.606,108.0662]
[1673620544144,20.0,16.619,16.601,45.18]
[1673620544360,20.0,16.619,16.6,136.2508]
[1673620544361,65.14,16.618,16.6,136.2508]
[1673620544771,20.0,16.617,16.6,136.2508]
[1673620544983,65.14,16.616,16.6,136.2508]
[1673620545519,65.14,16.616,16.6,16.49]
[1673620545520,293.07079805,16.616,16.6,16.49]
[1673620545835,20.0,16.615,16.6,16.49]
[1673620546048,65.15,16.614,16.6,16.49]
[1673620547078,20.0,16.613,16.6,16.49]
[1673620547395,65.15,16.612,16.6,16.49]
[1673620547937,20.0,16.611,16.6,16.49]
[1673620548150,65.16,16.61,16.6,16.49]
[1673620548360,17.0,16.609,16.6,16.49]
[1673620548574,65.16,16.608,16.6,16.49]
[1673620548885,17.0,16.607,16.6,16.49]
[1673620549070,20.0,16.606,16.6,16.49]
[1673620549703,17.0,16.605,16.6,16.49]
[1673620550121,17.0,16.606,16.6,16.49]
[1673620551177,45.15,16.614,16.6,82.69]
[1673620551399,45.14,16.615,16.601,45.18]
[1673620551602,45.14,16.618,16.601,162.3527]
[1673620552021,20.0,16.617,16.601,162.3527]
[1673620552232,45.14,16.616,16.601,117.1727]
[1673620552451,20.0,16.614,16.601,117.1727]
[1673620552651,62.15,16.613,16.6,16.66]
[1673620552965,20.0,16.612,16.6,16.66]
[1673620553298,45.16,16.611,16.6,16.66]
[1673620553518,62.16,16.611,16.6,16.66]
[1673620553725,17.0,16.611,16.6,16.66]
[1673620555078,17.0,16.611,16.597,45.19]
[1673620555298,20.0,16.609,16.594,114.4781]
[1673620555487,82.16,16.608,16.594,114.4781]
[1673620560739,65.16,16.608,16.594,114.4781]
[1673620561685,20.0,16.607,16.594,114.4781]
[1673620561993,45.17,16.606,16.594,114.4781]
[1673620562217,17.0,16.605,16.594,114.4781]
[1673620562432,45.18,16.604,16.59,82.64]
[1673620562644,17.0,16.603,16.59,201.8639]
[1673620562853,45.18,16.602,16.59,201.8639]
[1673620563048,17.0,16.601,16.59,201.8639]
[1673620563266,45.17,16.606,16.59,201.8639]
[1673620564016,45.17,16.606,16.59,135.8939]
[1673620564330,20.0,16.605,16.59,16.67]
[1673620564529,45.18,16.604,16.59,16.67]
[1673620564740,57.0,16.603,16.59,16.67]
[1673620564953,45.18,16.602,16.59,16.67]
[1673620565158,17.0,16.601,16.59,16.67]
[1673620565606,45.17,16.606,16.59,16.67]
[1673620565814,45.17,16.606,16.59,82.64]
[1673620566749,45.16,16.608,16.59,82.64]
[1673620566960,20.0,16.607,16.591,65.21]
[1673620567603,20.0,16.611,16.591,65.21]
[1673620567794,45.16,16.61,16.591,65.21]
[1673620568005,20.0,16.609,16.591,65.21]
[1673620568228,45.16,16.608,16.591,65.21]
[1673620568551,37.0,16.607,16.591,65.21]
[1673620568765,17.0,16.607,16.592,20.0]
[1673620568974,17.0,16.608,16.593,45.21]
[1673620569165,20.0,16.607,16.6,16.39]
[1673620569374,17.0,16.606,16.6,16.39]
[1673620570751,17.0,16.606,16.596,117.9467]
[1673620572943,20.0,16.607,16.596,117.9467]
[1673620573282,20.0,16.609,16.6,16.39]
[1673620573481,20.0,16.611,16.6,16.39]
[1673620574315,17.0,16.61,16.6,16.39]
[1673620574534,20.0,16.609,16.6,16.39]
[1673620574741,20.0,16.611,16.6,16.39]
[1673620574952,45.15,16.612,16.6,16.39]
[1673620575160,45.15,16.612,16.6,82.41]
[1673620575379,45.14,16.616,16.6,82.41]
[1673620575593,20.0,16.619,16.6,82.41]
[1673620575594,45.14,16.617,16.601,126.2122]
[1673620575788,45.14,16.618,16.602,65.18]
[1673620576006,45.13,16.62,16.602,65.18]
[1673620576344,20.0,16.619,16.602,65.18]
[1673620576549,45.14,16.618,16.61,16.52]
[1673620576736,20.0,16.617,16.61,16.52]
[1673620576943,20.0,16.624,16.61,16.52]
[1673620576944,45.13,16.62,16.61,16.52]
[1673620577174,66.12,16.64,16.61,82.49]
[1673620577175,45.12,16.623,16.61,82.49]
[1673620577503,45.12,16.625,16.611,115.9555]
[1673620577682,45.12,16.625,16.611,161.1155]
[1673620577891,45.11,16.627,16.611,161.1155]
[1673620578101,45.11,16.627,16.611,115.9555]
[1673620578522,45.11,16.627,16.611,161.1155]
[1673620578951,45.11,16.628,16.611,161.1155]
[1673620579279,20.0,16.627,16.611,161.1155]
[1673620579804,20.0,16.627,16.612,20.0]
[1673620580014,17.0,16.626,16.613,45.15]
[1673620580211,17.0,16.626,16.614,110.7886]
[1673620580854,20.0,16.627,16.614,110.7886]
[1673620581261,20.0,16.628,16.615,20.0]
[1673620581471,65.11,16.628,16.614,110.7886]
[1673620581683,20.0,16.628,16.614,110.7886]
[1673620582218,20.0,16.629,16.615,45.15]
[1673620582535,65.1,16.632,16.615,45.15]
[1673620583168,17.0,16.631,16.615,45.15]
[1673620583501,65.1,16.63,16.615,45.15]
[1673620583671,17.0,16.629,16.615,45.15]
[1673620583884,17.0,16.629,16.62,16.39]
[1673620584116,20.0,16.628,16.62,16.39]
[1673620584314,17.0,16.627,16.62,16.39]
[1673620585877,45.12,16.626,16.62,16.39]
[1673620586111,17.0,16.625,16.614,110.7886]
[1673620586721,20.0,16.625,16.614,110.7886]
[1673620586939,62.12,16.624,16.614,110.7886]
[1673620589472,20.0,16.623,16.614,110.7886]
[1673620589679,82.13,16.622,16.61,16.55]
[1673620591379,82.13,16.622,16.606,20.0]
[1673620591790,82.13,16.622,16.604,65.18]
[1673620592012,82.13,16.622,16.603,175.1674]
[1673620592220,82.13,16.622,16.603,109.9874]
[1673620592440,20.0,16.621,16.603,109.9874]
[1673620592752,20.0,16.619,16.603,109.9874]
[1673620592959,82.13,16.62,16.603,109.9874]
[1673620592960,65.14,16.618,16.603,109.9874]
[1673620593171,45.14,16.618,16.603,155.1674]
[1673620593488,20.0,16.617,16.606,20.0]
[1673620593693,20.0,16.62,16.606,20.0]
[1673620594102,20.0,16.622,16.605,157.2563]
[1673620594312,62.13,16.621,16.605,112.0863]
[1673620594524,20.0,16.62,16.605,112.0863]
[1673620594727,62.13,16.619,16.605,112.0863]
[1673620595060,20.0,16.618,16.605,112.0863]
[1673620595258,62.14,16.617,16.605,112.0863]
[1673620597262,20.0,16.618,16.605,112.0863]
[1673620597477,20.0,16.621,16.605,112.0863]
[1673620597671,45.13,16.62,16.605,112.0863]
[1673620598216,20.0,16.619,16.605,112.0863]
[1673620598615,17.0,16.618,16.605,112.0863]
[1673620598848,20.0,16.617,16.605,112.0863]
[1673620599166,17.0,16.616,16.605,112.0863]
[1673620599695,36.52,16.63,16.61,16.39]
[1673620599906,20.0,16.63,16.61,16.39]
[1673620600306,45.12,16.626,16.61,16.39]
[1673620600534,45.12,16.626,16.611,117.8814]
[1673620600727,45.11,16.627,16.611,117.8814]
[1673620600937,17.0,16.626,16.611,117.8814]
[1673620601155,45.12,16.625,16.611,117.8814]
[1673620601367,17.0,16.624,16.611,117.8814]
[1673620603579,45.12,16.623,16.611,117.8814]
[1673620603903,17.0,16.622,16.611,117.8814]
[1673620604309,45.13,16.621,16.611,117.8814]
[1673620604520,17.0,16.62,16.611,117.8814]
[1673620605889,17.0,16.62,16.61,16.66]
[1673620606089,65.13,16.619,16.605,112.0863]
[1673620606422,17.0,16.618,16.605,112.0863]
[1673620606607,65.14,16.617,16.605,112.0863]
[1673620606819,17.0,16.616,16.605,112.0863]
[1673620608210,34.99542749,16.622,16.61,82.41]
[1673620608530,108.6012,16.629,16.611,45.16]
[1673620608843,45.11,16.628,16.611,163.1976]
[1673620609452,20.0,16.627,16.611,163.1976]
[1673620610100,20.0,16.627,16.612,20.0]
[1673620610315,20.0,16.627,16.613,45.15]
[1673620610723,20.0,16.627,16.612,45.15]
[1673620611691,17.0,16.626,16.612,45.15]
[1673620615043,17.0,16.626,16.612,65.15]
[1673620616200,17.0,16.626,16.612,45.15]
[1673620616598,45.1,16.63,16.62,16.38]
[1673620616814,20.0,16.637,16.62,16.38]
[1673620617564,45.09,16.636,16.62,16.38]
[1673620618089,45.09,16.637,16.62,16.38]
[1673620618289,65.08,16.638,16.62,16.38]
[1673620618499,20.0,16.637,16.62,16.38]
[1673620618708,45.09,16.636,16.62,16.38]
[1673620619121,17.0,16.635,16.62,16.38]
[1673620619334,45.09,16.634,16.62,16.38]
[1673620619666,17.0,16.633,16.62,36.38]
[1673620620406,17.0,16.633,16.62,16.38]
[1673620621859,45.1,16.632,16.62,16.38]
[1673620622072,17.0,16.631,16.62,16.38]
[1673620622281,17.0,16.633,16.62,16.38]
[1673620622499,45.1,16.632,16.62,16.38]
[1673620622712,17.0,16.631,16.62,16.38]
[1673620623238,20.0,16.63,16.62,16.38]
[1673620623450,20.0,16.63,16.615,45.15]
[1673620623451,62.11,16.629,16.614,117.966]
[1673620623759,20.0,16.628,16.614,117.966]
[1673620623972,62.11,16.627,16.614,117.966]
[1673620624185,17.0,16.627,16.614,117.966]
[1673620627639,20.0,16.626,16.614,117.966]
[1673620628052,17.0,16.625,16.614,117.966]
[1673620628259,17.0,16.625,16.612,108.6931]
[1673620628487,62.12,16.625,16.612,108.6931]
[1673620628891,17.0,16.625,16.612,108.6931]
[1673620629107,17.0,16.626,16.612,108.6931]
[1673620630894,17.0,16.626,16.613,45.15]
[1673620631315,17.0,16.627,16.613,45.15]
[1673620631627,17.0,16.627,16.614,111.6639]
[1673620633309,45.1,16.63,16.614,111.6639]
[1673620633648,20.0,16.636,16.62,16.39]
[1673620634046,45.09,16.634,16.62,16.39]
[1673620634378,45.09,16.635,16.62,16.39]
[1673620634992,20.0,16.633,16.62,16.39]
[1673620635204,82.1,16.632,16.62,16.39]
[1673620637004,137.30843756,16.635,16.621,45.13]
[1673620637217,94.17419951,16.635,16.62,16.39]
[1673620637933,20.0,16.634,16.62,16.39]
[1673620638148,45.1,16.633,16.62,16.39]
[1673620638355,17.0,16.632,16.62,16.39]
[1673620639425,45.1,16.631,16.62,16.39]
[1673620639618,17.0,16.63,16.62,82.47]
[1673620639943,17.0,16.63,16.62,82.36]
[1673620643632,17.0,16.63,16.62,20.09000431]
[1673620643820,45.09,16.634,16.62,69.49000431]
[1673620644042,45.09,16.634,16.621,20.0]
[1673620644249,45.08,16.638,16.621,20.0]
[1673620644466,20.0,16.637,16.63,16.38]
[1673620644691,45.09,16.636,16.63,16.38]
[1673620645321,17.0,16.635,16.63,16.38]
[1673620645528,45.09,16.636,16.63,16.38]
[1673620647088,20.0,16.637,16.63,16.38]
[1673620648159,17.0,16.636,16.63,16.38]
[1673620648565,45.09,16.635,16.63,16.38]
[1673620648777,17.0,16.634,16.63,16.38]
[1673620648985,45.09,16.636,16.623,112.6581]
[1673620649213,17.0,16.635,16.63,16.52]
[1673620652979,20.0,16.637,16.63,16.52]
[1673620655303,62.09,16.636,16.63,16.52]
[1673620656145,45.09,16.636,16.63,16.52]
[1673620656595,20.0,16.637,16.63,16.52]
[1673620657092,45.09,16.636,16.63,16.52]
[1673620658981,17.0,16.635,16.63,16.52]
[1673620662793,45.09,16.634,16.63,16.52]
[1673620663112,17.0,16.633,16.623,112.6581]
[1673620665923,17.0,16.634,16.623,112.6581]
[1673620666799,20.0,16.637,16.623,112.6581]
[1673620667123,20.0,16.637,16.63,16.39]
[1673620667308,45.09,16.636,16.63,16.39]
[1673620668267,17.0,16.635,16.63,12.24]
[1673620668888,17.0,16.635,16.63,12.28]
[1673620669099,20.0,16.637,16.63,61.56]
[1673620669309,20.0,16.637,16.63,61.65]
[1673620669522,20.0,16.638,16.63,61.65]
[1673620669835,45.09,16.637,16.63,61.65]
[1673620671946,65.08,16.638,16.63,61.65]
[1673620672665,20.0,16.637,16.63,61.65]
[1673620672985,45.09,16.636,16.63,61.65]
[1673620673198,17.0,16.635,16.63,61.65]
[1673620673731,17.0,16.635,16.63,12.42]
[1673620673924,45.09,16.634,16.63,12.42]
[1673620674143,17.0,16.633,16.623,112.6581]
[1673620674891,62.09,16.634,16.623,112.6581]
[1673620675634,20.0,16.633,16.623,112.6581]
[1673620675945,17.0,16.632,16.623,112.6581]
[1673620676561,20.0,16.631,16.623,112.6581]
[1673620676763,17.0,16.63,16.623,112.6581]
[1673620680988,65.09,16.636,16.623,112.6581]
[1673620681195,20.0,16.636,16.63,12.24]
[1673620681396,45.09,16.635,16.63,12.24]
[1673620682562,65.09,16.636,16.63,12.24]
[1673620682881,65.09,16.637,16.63,12.24]
[1673620683281,45.09,16.637,16.63,12.24]
[1673620684137,20.0,16.636,16.63,12.24]
[1673620684348,45.09,16.635,16.63,12.24]
[1673620684765,17.0,16.634,16.63,12.24]
[1673620684962,17.0,16.634,16.624,20.0]
[1673620685175,17.0,16.634,16.623,112.6581]
[1673620685600,45.09,16.635,16.623,112.6581]
[1673620685805,20.0,16.638,16.63,12.32]
[1673620686352,65.09,16.637,16.63,12.32]
[1673620687078,17.0,16.636,16.63,12.32]
[1673620687707,45.09,16.635,16.63,12.32]
[1673620688115,17.0,16.634,16.621,113.9029]
[1673620688453,17.0,16.634,16.62,106.89]
[1673620688454,20.0,16.632,16.62,12.43]
[1673620688634,82.1,16.631,16.62,12.43]
[1673620688850,194.58583874,16.631,16.62,12.43]
[1673620689058,20.0,16.63,16.62,12.43]
[1673620689294,82.11,16.629,16.62,12.43]
[1673620689483,20.0,16.628,16.62,12.43]
[1673620689703,82.11,16.627,16.62,12.43]
[1673620691370,20.0,16.626,16.62,12.43]
[1673620691581,17.0,16.625,16.612,45.15]
[1673620691798,17.0,16.625,16.611,161.0024]
[1673620692012,72.31642217,16.625,16.611,161.0024]
[1673620692432,20.0,16.624,16.611,161.0024]
[1673620692663,17.0,16.623,16.611,161.0024]
[1673620692978,17.0,16.623,16.612,20.0]
[1673620693166,17.0,16.623,16.613,45.15]
[1673620694736,17.0,16.623,16.612,45.15]
[1673620694947,17.0,16.623,16.612,65.15]
[1673620696547,17.0,16.623,16.613,20.0]
[1673620698002,17.0,16.623,16.614,156.8139]
[1673620698207,17.0,16.623,16.614,111.6639]
[1673620699277,17.0,16.623,16.611,161.0024]